{"text_format":"3","workbook":"xlsx","n_sheets":2,"sheets":["Urmărirea scăderii în greutate","calcule"],"not_rendered":{"charts":1,"defined_names":7},"read":"whole","date_system":"1900"}

{"sheet":"Urmărirea scăderii în greutate","index":0,"n_rows":129,"n_cols":11,"rows_kept":129,"merged":[[0,5,0,9],[1,6,3,9]]}
[null,"GREUTATE ȚINTĂ","VIZUALIZARE DIAGRAMĂ",null,null," PIERDEREA ÎN GREUTATE A CRISTINEI"]
[{"$nulls":6},"URMĂRIRE"]
[null,{"v":172,"d":"172.0"},"SĂPTĂMÂNAL",{"$nulls":7}," "]
[]
[]
[{"$nulls":10}," "]
{"$rows_empty":18}
[null,"DATĂ","GREUTATE"]
[null,"2012-11-30",{"v":176,"d":"176.0"}]
[null,"2012-12-07",{"v":176,"d":"176.0"}]
[null,"2012-12-14",177.6]
[null,"2012-12-21",176.5]
[null,"2012-12-28",176.1]
[null,"2013-01-04",{"v":174,"d":"174.0"}]
[null,"2013-01-11",{"v":173,"d":"173.0"}]
[null,"2013-01-18",{"v":172,"d":"172.0"}]
[null,"2013-01-25",{"v":172,"d":"172.0"}]
[null,"2013-02-01",{"v":173,"d":"173.0"}]
[null,"2013-02-08",{"v":174,"d":"174.0"}]
[null,"2013-02-15",{"v":175,"d":"175.0"}]
[null,"2013-02-22"]
[null,"2013-03-01"]
[null,"2013-03-08"]
[null,"2013-03-15"]
[null,"2013-03-22"]
[null,"2013-03-29"]
[null,"2013-04-05"]
[null,"2013-04-12"]
[null,"2013-04-19"]
[null,"2013-04-26"]
[null,"2013-05-03"]
[null,"2013-05-10"]
[null,"2013-05-17"]
[null,"2013-05-24"]
[null,"2013-05-31"]
[null,"2013-06-07"]
[null,"2013-06-14"]
[null,"2013-06-21"]
[null,"2013-06-28"]
[null,"2013-07-05"]
[null,"2013-07-12"]
[null,"2013-07-19"]
[null,"2013-07-26"]
[null,"2013-08-02"]
[null,"2013-08-09"]
[null,"2013-08-16"]
[null,"2013-08-23"]
[null,"2013-08-30"]
[null,"2013-09-06"]
[null,"2013-09-13"]
[null,"2013-09-20"]
[null,"2013-09-27"]
[null,"2013-10-04"]
[null,"2013-10-11"]
[null,"2013-10-18"]
[null,"2013-10-25"]
[null,"2013-11-01"]
[null,"2013-11-08"]
[null,"2013-11-15"]
[null,"2013-11-22"]
[null,"2013-11-29"]
[null,"2013-12-06"]
[null,"2013-12-13"]
[null,"2013-12-20"]
[null,"2013-12-27"]
[null,"2014-01-03"]
[null,"2014-01-10"]
[null,"2014-01-17"]
[null,"2014-01-24"]
[null,"2014-01-31"]
[null,"2014-02-07"]
[null,"2014-02-14"]
[null,"2014-02-21"]
[null,"2014-02-28"]
[null,"2014-03-07"]
[null,"2014-03-14"]
[null,"2014-03-21"]
[null,"2014-03-28"]
[null,"2014-04-04"]
[null,"2014-04-11"]
[null,"2014-04-18"]
[null,"2014-04-25"]
[null,"2014-05-02"]
[null,"2014-05-09"]
[null,"2014-05-16"]
[null,"2014-05-23"]
[null,"2014-05-30"]
[null,"2014-06-06"]
[null,"2014-06-13"]
[null,"2014-06-20"]
[null,"2014-06-27"]
[null,"2014-07-04"]
[null,"2014-07-11"]
[null,"2014-07-18"]
[null,"2014-07-25"]
[null,"2014-08-01"]
[null,"2014-08-08"]
[null,"2014-08-15"]
[null,"2014-08-22"]
[null,"2014-08-29"]
[null,"2014-09-05"]
[null,"2014-09-12"]
[null,"2014-09-19"]
[null,"2014-09-26"]
[null,"2014-10-03"]
[null,"2014-10-10"]
[null,"2014-10-17"]
[null,"2014-10-24"]
[null,"2014-10-31"]
[null,"2014-11-07"]
[null,"2014-11-14"]
[null,"2014-11-21"]

{"sheet":"calcule","index":1,"n_rows":108,"n_cols":17,"rows_kept":108,"hidden":true}
["*** Foaia se păstrează ascunsă***"]
[]
[{"$f":"COUNTIF(A5:A108,FALSE)","v":13},"Perioade","Valori",{"$nulls":3},{"$f":"COUNTIF(H5:H28,\">\"&0)","v":4},"Perioade",null,"Valori"]
[null,"Săptămână",null,null,true,null,null,"Lună","SFÂRȘIT LUNĂ"]
[{"$f":"IF(('Urmărirea scăderii în greutate'!C26=0)*('Urmărirea scăderii în greutate'!C25=0),TRUE)","v":false},{"$f":"IF(A5,0,IF('Urmărirea scăderii în greutate'!B26=0,'Urmărirea scăderii în greutate'!B25+5,'Urmărirea scăderii în greutate'!B26))","v":"2012-11-30"},{"$f":"'Urmărirea scăderii în greutate'!C26","v":176},{"$f":"MIN(PerioadeDiagramă)","v":"2012-11-30"},{"$f":"IF($E$4,GreutateȚintă,NA())","v":172},null,null,{"$f":"DATE(YEAR(B5),MONTH(B5),1)","v":"2012-11-01"},{"$f":"EOMONTH(H5,0)","v":"2012-11-30"},{"$f":"IFERROR(AVERAGEIFS(TabelGreutate[GREUTATE],TabelGreutate[DATĂ],\">=\"&H5,TabelGreutate[DATĂ],\"<=\"&I5),NA())","v":176}]
[{"$f":"IF(('Urmărirea scăderii în greutate'!C27=0)*('Urmărirea scăderii în greutate'!C26=0),TRUE)","v":false},{"$f":"IF(A6,0,IF('Urmărirea scăderii în greutate'!B27=0,'Urmărirea scăderii în greutate'!B26+5,'Urmărirea scăderii în greutate'!B27))","v":"2012-12-07"},{"$f":"'Urmărirea scăderii în greutate'!C27","v":176},{"$f":"MAX(PerioadeDiagramă)","v":"2013-02-22"},172,null,null,{"$f":"IF(I5+1>MAX($B:$B),NA(),I5+1)","v":"2012-12-01"},"2012-12-31",{"$f":"IFERROR(AVERAGEIFS(TabelGreutate[GREUTATE],TabelGreutate[DATĂ],\">=\"&H6,TabelGreutate[DATĂ],\"<=\"&I6),NA())","v":176.55}]
[{"$f":"IF(('Urmărirea scăderii în greutate'!C28=0)*('Urmărirea scăderii în greutate'!C27=0),TRUE)","v":false},{"$f":"IF(A7,0,IF('Urmărirea scăderii în greutate'!B28=0,'Urmărirea scăderii în greutate'!B27+5,'Urmărirea scăderii în greutate'!B28))","v":"2012-12-14"},{"$f":"'Urmărirea scăderii în greutate'!C28","v":177.6},{"$nulls":4},{"$f":"IF(I6+1>MAX($B:$B),NA(),I6+1)","v":"2013-01-01"},"2013-01-31",{"$f":"IFERROR(AVERAGEIFS(TabelGreutate[GREUTATE],TabelGreutate[DATĂ],\">=\"&H7,TabelGreutate[DATĂ],\"<=\"&I7),NA())","v":172.75}]
[{"$f":"IF(('Urmărirea scăderii în greutate'!C29=0)*('Urmărirea scăderii în greutate'!C28=0),TRUE)","v":false},{"$f":"IF(A8,0,IF('Urmărirea scăderii în greutate'!B29=0,'Urmărirea scăderii în greutate'!B28+5,'Urmărirea scăderii în greutate'!B29))","v":"2012-12-21"},{"$f":"'Urmărirea scăderii în greutate'!C29","v":176.5},{"$nulls":4},"2013-02-01","2013-02-28",{"$f":"IFERROR(AVERAGEIFS(TabelGreutate[GREUTATE],TabelGreutate[DATĂ],\">=\"&H8,TabelGreutate[DATĂ],\"<=\"&I8),NA())","v":174}]
[{"$f":"IF(('Urmărirea scăderii în greutate'!C30=0)*('Urmărirea scăderii în greutate'!C29=0),TRUE)","v":false},{"$f":"IF(A9,0,IF('Urmărirea scăderii în greutate'!B30=0,'Urmărirea scăderii în greutate'!B29+5,'Urmărirea scăderii în greutate'!B30))","v":"2012-12-28"},{"$f":"'Urmărirea scăderii în greutate'!C30","v":176.1},{"$nulls":4},{"$error":"#N/A"},{"$error":"#N/A"},{"$f":"IFERROR(AVERAGEIFS(TabelGreutate[GREUTATE],TabelGreutate[DATĂ],\">=\"&H9,TabelGreutate[DATĂ],\"<=\"&I9),NA())","v":{"$error":"#N/A"}}]
[{"$f":"IF(('Urmărirea scăderii în greutate'!C31=0)*('Urmărirea scăderii în greutate'!C30=0),TRUE)","v":false},{"$f":"IF(A10,0,IF('Urmărirea scăderii în greutate'!B31=0,'Urmărirea scăderii în greutate'!B30+5,'Urmărirea scăderii în greutate'!B31))","v":"2013-01-04"},{"$f":"'Urmărirea scăderii în greutate'!C31","v":174},{"$nulls":4},{"$error":"#N/A"},{"$error":"#N/A"},{"$f":"IFERROR(AVERAGEIFS(TabelGreutate[GREUTATE],TabelGreutate[DATĂ],\">=\"&H10,TabelGreutate[DATĂ],\"<=\"&I10),NA())","v":{"$error":"#N/A"}}]
[{"$f":"IF(('Urmărirea scăderii în greutate'!C32=0)*('Urmărirea scăderii în greutate'!C31=0),TRUE)","v":false},{"$f":"IF(A11,0,IF('Urmărirea scăderii în greutate'!B32=0,'Urmărirea scăderii în greutate'!B31+5,'Urmărirea scăderii în greutate'!B32))","v":"2013-01-11"},{"$f":"'Urmărirea scăderii în greutate'!C32","v":173},{"$nulls":4},{"$error":"#N/A"},{"$error":"#N/A"},{"$f":"IFERROR(AVERAGEIFS(TabelGreutate[GREUTATE],TabelGreutate[DATĂ],\">=\"&H11,TabelGreutate[DATĂ],\"<=\"&I11),NA())","v":{"$error":"#N/A"}},{"$nulls":6},{"$f":"MAX($B:$B)","v":"2013-02-22"}]
[{"$f":"IF(('Urmărirea scăderii în greutate'!C33=0)*('Urmărirea scăderii în greutate'!C32=0),TRUE)","v":false},{"$f":"IF(A12,0,IF('Urmărirea scăderii în greutate'!B33=0,'Urmărirea scăderii în greutate'!B32+5,'Urmărirea scăderii în greutate'!B33))","v":"2013-01-18"},{"$f":"'Urmărirea scăderii în greutate'!C33","v":172},{"$nulls":4},{"$error":"#N/A"},{"$error":"#N/A"},{"$f":"IFERROR(AVERAGEIFS(TabelGreutate[GREUTATE],TabelGreutate[DATĂ],\">=\"&H12,TabelGreutate[DATĂ],\"<=\"&I12),NA())","v":{"$error":"#N/A"}}]
[{"$f":"IF(('Urmărirea scăderii în greutate'!C34=0)*('Urmărirea scăderii în greutate'!C33=0),TRUE)","v":false},{"$f":"IF(A13,0,IF('Urmărirea scăderii în greutate'!B34=0,'Urmărirea scăderii în greutate'!B33+5,'Urmărirea scăderii în greutate'!B34))","v":"2013-01-25"},{"$f":"'Urmărirea scăderii în greutate'!C34","v":172},{"$nulls":4},{"$error":"#N/A"},{"$error":"#N/A"},{"$f":"IFERROR(AVERAGEIFS(TabelGreutate[GREUTATE],TabelGreutate[DATĂ],\">=\"&H13,TabelGreutate[DATĂ],\"<=\"&I13),NA())","v":{"$error":"#N/A"}}]
[{"$f":"IF(('Urmărirea scăderii în greutate'!C35=0)*('Urmărirea scăderii în greutate'!C34=0),TRUE)","v":false},{"$f":"IF(A14,0,IF('Urmărirea scăderii în greutate'!B35=0,'Urmărirea scăderii în greutate'!B34+5,'Urmărirea scăderii în greutate'!B35))","v":"2013-02-01"},{"$f":"'Urmărirea scăderii în greutate'!C35","v":173},{"$nulls":4},{"$error":"#N/A"},{"$error":"#N/A"},{"$f":"IFERROR(AVERAGEIFS(TabelGreutate[GREUTATE],TabelGreutate[DATĂ],\">=\"&H14,TabelGreutate[DATĂ],\"<=\"&I14),NA())","v":{"$error":"#N/A"}}]
[{"$f":"IF(('Urmărirea scăderii în greutate'!C36=0)*('Urmărirea scăderii în greutate'!C35=0),TRUE)","v":false},{"$f":"IF(A15,0,IF('Urmărirea scăderii în greutate'!B36=0,'Urmărirea scăderii în greutate'!B35+5,'Urmărirea scăderii în greutate'!B36))","v":"2013-02-08"},{"$f":"'Urmărirea scăderii în greutate'!C36","v":174},{"$nulls":4},{"$error":"#N/A"},{"$error":"#N/A"},{"$f":"IFERROR(AVERAGEIFS(TabelGreutate[GREUTATE],TabelGreutate[DATĂ],\">=\"&H15,TabelGreutate[DATĂ],\"<=\"&I15),NA())","v":{"$error":"#N/A"}}]
[{"$f":"IF(('Urmărirea scăderii în greutate'!C37=0)*('Urmărirea scăderii în greutate'!C36=0),TRUE)","v":false},{"$f":"IF(A16,0,IF('Urmărirea scăderii în greutate'!B37=0,'Urmărirea scăderii în greutate'!B36+5,'Urmărirea scăderii în greutate'!B37))","v":"2013-02-15"},{"$f":"'Urmărirea scăderii în greutate'!C37","v":175},{"$nulls":4},{"$error":"#N/A"},{"$error":"#N/A"},{"$f":"IFERROR(AVERAGEIFS(TabelGreutate[GREUTATE],TabelGreutate[DATĂ],\">=\"&H16,TabelGreutate[DATĂ],\"<=\"&I16),NA())","v":{"$error":"#N/A"}}]
[{"$f":"IF(('Urmărirea scăderii în greutate'!C38=0)*('Urmărirea scăderii în greutate'!C37=0),TRUE)","v":false},{"$f":"IF(A17,0,IF('Urmărirea scăderii în greutate'!B38=0,'Urmărirea scăderii în greutate'!B37+5,'Urmărirea scăderii în greutate'!B38))","v":"2013-02-22"},{"$f":"'Urmărirea scăderii în greutate'!C38","v":0},{"$nulls":4},{"$error":"#N/A"},{"$error":"#N/A"},{"$f":"IFERROR(AVERAGEIFS(TabelGreutate[GREUTATE],TabelGreutate[DATĂ],\">=\"&H17,TabelGreutate[DATĂ],\"<=\"&I17),NA())","v":{"$error":"#N/A"}}]
[{"$f":"IF(('Urmărirea scăderii în greutate'!C39=0)*('Urmărirea scăderii în greutate'!C38=0),TRUE)","v":true},{"$f":"IF(A18,0,IF('Urmărirea scăderii în greutate'!B39=0,'Urmărirea scăderii în greutate'!B38+5,'Urmărirea scăderii în greutate'!B39))","v":"00:00:00"},{"$f":"'Urmărirea scăderii în greutate'!C39","v":0},{"$nulls":4},{"$error":"#N/A"},{"$error":"#N/A"},{"$f":"IFERROR(AVERAGEIFS(TabelGreutate[GREUTATE],TabelGreutate[DATĂ],\">=\"&H18,TabelGreutate[DATĂ],\"<=\"&I18),NA())","v":{"$error":"#N/A"}}]
[{"$f":"IF(('Urmărirea scăderii în greutate'!C40=0)*('Urmărirea scăderii în greutate'!C39=0),TRUE)","v":true},{"$f":"IF(A19,0,IF('Urmărirea scăderii în greutate'!B40=0,'Urmărirea scăderii în greutate'!B39+5,'Urmărirea scăderii în greutate'!B40))","v":"00:00:00"},{"$f":"'Urmărirea scăderii în greutate'!C40","v":0},{"$nulls":4},{"$error":"#N/A"},{"$error":"#N/A"},{"$f":"IFERROR(AVERAGEIFS(TabelGreutate[GREUTATE],TabelGreutate[DATĂ],\">=\"&H19,TabelGreutate[DATĂ],\"<=\"&I19),NA())","v":{"$error":"#N/A"}}]
[{"$f":"IF(('Urmărirea scăderii în greutate'!C41=0)*('Urmărirea scăderii în greutate'!C40=0),TRUE)","v":true},{"$f":"IF(A20,0,IF('Urmărirea scăderii în greutate'!B41=0,'Urmărirea scăderii în greutate'!B40+5,'Urmărirea scăderii în greutate'!B41))","v":"00:00:00"},{"$f":"'Urmărirea scăderii în greutate'!C41","v":0},{"$nulls":4},{"$error":"#N/A"},{"$error":"#N/A"},{"$f":"IFERROR(AVERAGEIFS(TabelGreutate[GREUTATE],TabelGreutate[DATĂ],\">=\"&H20,TabelGreutate[DATĂ],\"<=\"&I20),NA())","v":{"$error":"#N/A"}}]
[{"$f":"IF(('Urmărirea scăderii în greutate'!C42=0)*('Urmărirea scăderii în greutate'!C41=0),TRUE)","v":true},{"$f":"IF(A21,0,IF('Urmărirea scăderii în greutate'!B42=0,'Urmărirea scăderii în greutate'!B41+5,'Urmărirea scăderii în greutate'!B42))","v":"00:00:00"},{"$f":"'Urmărirea scăderii în greutate'!C42","v":0},{"$nulls":4},{"$error":"#N/A"},{"$error":"#N/A"},{"$f":"IFERROR(AVERAGEIFS(TabelGreutate[GREUTATE],TabelGreutate[DATĂ],\">=\"&H21,TabelGreutate[DATĂ],\"<=\"&I21),NA())","v":{"$error":"#N/A"}}]
[{"$f":"IF(('Urmărirea scăderii în greutate'!C43=0)*('Urmărirea scăderii în greutate'!C42=0),TRUE)","v":true},{"$f":"IF(A22,0,IF('Urmărirea scăderii în greutate'!B43=0,'Urmărirea scăderii în greutate'!B42+5,'Urmărirea scăderii în greutate'!B43))","v":"00:00:00"},{"$f":"'Urmărirea scăderii în greutate'!C43","v":0},{"$nulls":4},{"$error":"#N/A"},{"$error":"#N/A"},{"$f":"IFERROR(AVERAGEIFS(TabelGreutate[GREUTATE],TabelGreutate[DATĂ],\">=\"&H22,TabelGreutate[DATĂ],\"<=\"&I22),NA())","v":{"$error":"#N/A"}}]
[{"$f":"IF(('Urmărirea scăderii în greutate'!C44=0)*('Urmărirea scăderii în greutate'!C43=0),TRUE)","v":true},{"$f":"IF(A23,0,IF('Urmărirea scăderii în greutate'!B44=0,'Urmărirea scăderii în greutate'!B43+5,'Urmărirea scăderii în greutate'!B44))","v":"00:00:00"},{"$f":"'Urmărirea scăderii în greutate'!C44","v":0},{"$nulls":4},{"$error":"#N/A"},{"$error":"#N/A"},{"$f":"IFERROR(AVERAGEIFS(TabelGreutate[GREUTATE],TabelGreutate[DATĂ],\">=\"&H23,TabelGreutate[DATĂ],\"<=\"&I23),NA())","v":{"$error":"#N/A"}}]
[{"$f":"IF(('Urmărirea scăderii în greutate'!C45=0)*('Urmărirea scăderii în greutate'!C44=0),TRUE)","v":true},{"$f":"IF(A24,0,IF('Urmărirea scăderii în greutate'!B45=0,'Urmărirea scăderii în greutate'!B44+5,'Urmărirea scăderii în greutate'!B45))","v":"00:00:00"},{"$f":"'Urmărirea scăderii în greutate'!C45","v":0},{"$nulls":4},{"$error":"#N/A"},{"$error":"#N/A"},{"$f":"IFERROR(AVERAGEIFS(TabelGreutate[GREUTATE],TabelGreutate[DATĂ],\">=\"&H24,TabelGreutate[DATĂ],\"<=\"&I24),NA())","v":{"$error":"#N/A"}}]
[{"$f":"IF(('Urmărirea scăderii în greutate'!C46=0)*('Urmărirea scăderii în greutate'!C45=0),TRUE)","v":true},{"$f":"IF(A25,0,IF('Urmărirea scăderii în greutate'!B46=0,'Urmărirea scăderii în greutate'!B45+5,'Urmărirea scăderii în greutate'!B46))","v":"00:00:00"},{"$f":"'Urmărirea scăderii în greutate'!C46","v":0},{"$nulls":4},{"$error":"#N/A"},{"$error":"#N/A"},{"$f":"IFERROR(AVERAGEIFS(TabelGreutate[GREUTATE],TabelGreutate[DATĂ],\">=\"&H25,TabelGreutate[DATĂ],\"<=\"&I25),NA())","v":{"$error":"#N/A"}}]
[{"$f":"IF(('Urmărirea scăderii în greutate'!C47=0)*('Urmărirea scăderii în greutate'!C46=0),TRUE)","v":true},{"$f":"IF(A26,0,IF('Urmărirea scăderii în greutate'!B47=0,'Urmărirea scăderii în greutate'!B46+5,'Urmărirea scăderii în greutate'!B47))","v":"00:00:00"},{"$f":"'Urmărirea scăderii în greutate'!C47","v":0},{"$nulls":4},{"$error":"#N/A"},{"$error":"#N/A"},{"$f":"IFERROR(AVERAGEIFS(TabelGreutate[GREUTATE],TabelGreutate[DATĂ],\">=\"&H26,TabelGreutate[DATĂ],\"<=\"&I26),NA())","v":{"$error":"#N/A"}}]
[{"$f":"IF(('Urmărirea scăderii în greutate'!C48=0)*('Urmărirea scăderii în greutate'!C47=0),TRUE)","v":true},{"$f":"IF(A27,0,IF('Urmărirea scăderii în greutate'!B48=0,'Urmărirea scăderii în greutate'!B47+5,'Urmărirea scăderii în greutate'!B48))","v":"00:00:00"},{"$f":"'Urmărirea scăderii în greutate'!C48","v":0},{"$nulls":4},{"$error":"#N/A"},{"$error":"#N/A"},{"$f":"IFERROR(AVERAGEIFS(TabelGreutate[GREUTATE],TabelGreutate[DATĂ],\">=\"&H27,TabelGreutate[DATĂ],\"<=\"&I27),NA())","v":{"$error":"#N/A"}}]
[{"$f":"IF(('Urmărirea scăderii în greutate'!C49=0)*('Urmărirea scăderii în greutate'!C48=0),TRUE)","v":true},{"$f":"IF(A28,0,IF('Urmărirea scăderii în greutate'!B49=0,'Urmărirea scăderii în greutate'!B48+5,'Urmărirea scăderii în greutate'!B49))","v":"00:00:00"},{"$f":"'Urmărirea scăderii în greutate'!C49","v":0},{"$nulls":4},{"$error":"#N/A"},{"$error":"#N/A"},{"$f":"IFERROR(AVERAGEIFS(TabelGreutate[GREUTATE],TabelGreutate[DATĂ],\">=\"&H28,TabelGreutate[DATĂ],\"<=\"&I28),NA())","v":{"$error":"#N/A"}}]
[{"$f":"IF(('Urmărirea scăderii în greutate'!C50=0)*('Urmărirea scăderii în greutate'!C49=0),TRUE)","v":true},{"$f":"IF(A29,0,IF('Urmărirea scăderii în greutate'!B50=0,'Urmărirea scăderii în greutate'!B49+5,'Urmărirea scăderii în greutate'!B50))","v":"00:00:00"},{"$f":"'Urmărirea scăderii în greutate'!C50","v":0}]
[{"$f":"IF(('Urmărirea scăderii în greutate'!C51=0)*('Urmărirea scăderii în greutate'!C50=0),TRUE)","v":true},{"$f":"IF(A30,0,IF('Urmărirea scăderii în greutate'!B51=0,'Urmărirea scăderii în greutate'!B50+5,'Urmărirea scăderii în greutate'!B51))","v":"00:00:00"},{"$f":"'Urmărirea scăderii în greutate'!C51","v":0}]
[{"$f":"IF(('Urmărirea scăderii în greutate'!C52=0)*('Urmărirea scăderii în greutate'!C51=0),TRUE)","v":true},{"$f":"IF(A31,0,IF('Urmărirea scăderii în greutate'!B52=0,'Urmărirea scăderii în greutate'!B51+5,'Urmărirea scăderii în greutate'!B52))","v":"00:00:00"},{"$f":"'Urmărirea scăderii în greutate'!C52","v":0}]
[{"$f":"IF(('Urmărirea scăderii în greutate'!C53=0)*('Urmărirea scăderii în greutate'!C52=0),TRUE)","v":true},{"$f":"IF(A32,0,IF('Urmărirea scăderii în greutate'!B53=0,'Urmărirea scăderii în greutate'!B52+5,'Urmărirea scăderii în greutate'!B53))","v":"00:00:00"},{"$f":"'Urmărirea scăderii în greutate'!C53","v":0}]
[{"$f":"IF(('Urmărirea scăderii în greutate'!C54=0)*('Urmărirea scăderii în greutate'!C53=0),TRUE)","v":true},{"$f":"IF(A33,0,IF('Urmărirea scăderii în greutate'!B54=0,'Urmărirea scăderii în greutate'!B53+5,'Urmărirea scăderii în greutate'!B54))","v":"00:00:00"},{"$f":"'Urmărirea scăderii în greutate'!C54","v":0}]
[{"$f":"IF(('Urmărirea scăderii în greutate'!C55=0)*('Urmărirea scăderii în greutate'!C54=0),TRUE)","v":true},{"$f":"IF(A34,0,IF('Urmărirea scăderii în greutate'!B55=0,'Urmărirea scăderii în greutate'!B54+5,'Urmărirea scăderii în greutate'!B55))","v":"00:00:00"},{"$f":"'Urmărirea scăderii în greutate'!C55","v":0}]
[{"$f":"IF(('Urmărirea scăderii în greutate'!C56=0)*('Urmărirea scăderii în greutate'!C55=0),TRUE)","v":true},{"$f":"IF(A35,0,IF('Urmărirea scăderii în greutate'!B56=0,'Urmărirea scăderii în greutate'!B55+5,'Urmărirea scăderii în greutate'!B56))","v":"00:00:00"},{"$f":"'Urmărirea scăderii în greutate'!C56","v":0}]
[{"$f":"IF(('Urmărirea scăderii în greutate'!C57=0)*('Urmărirea scăderii în greutate'!C56=0),TRUE)","v":true},{"$f":"IF(A36,0,IF('Urmărirea scăderii în greutate'!B57=0,'Urmărirea scăderii în greutate'!B56+5,'Urmărirea scăderii în greutate'!B57))","v":"00:00:00"},{"$f":"'Urmărirea scăderii în greutate'!C57","v":0}]
[{"$f":"IF(('Urmărirea scăderii în greutate'!C58=0)*('Urmărirea scăderii în greutate'!C57=0),TRUE)","v":true},{"$f":"IF(A37,0,IF('Urmărirea scăderii în greutate'!B58=0,'Urmărirea scăderii în greutate'!B57+5,'Urmărirea scăderii în greutate'!B58))","v":"00:00:00"},{"$f":"'Urmărirea scăderii în greutate'!C58","v":0}]
[{"$f":"IF(('Urmărirea scăderii în greutate'!C59=0)*('Urmărirea scăderii în greutate'!C58=0),TRUE)","v":true},{"$f":"IF(A38,0,IF('Urmărirea scăderii în greutate'!B59=0,'Urmărirea scăderii în greutate'!B58+5,'Urmărirea scăderii în greutate'!B59))","v":"00:00:00"},{"$f":"'Urmărirea scăderii în greutate'!C59","v":0}]
[{"$f":"IF(('Urmărirea scăderii în greutate'!C60=0)*('Urmărirea scăderii în greutate'!C59=0),TRUE)","v":true},{"$f":"IF(A39,0,IF('Urmărirea scăderii în greutate'!B60=0,'Urmărirea scăderii în greutate'!B59+5,'Urmărirea scăderii în greutate'!B60))","v":"00:00:00"},{"$f":"'Urmărirea scăderii în greutate'!C60","v":0}]
[{"$f":"IF(('Urmărirea scăderii în greutate'!C61=0)*('Urmărirea scăderii în greutate'!C60=0),TRUE)","v":true},{"$f":"IF(A40,0,IF('Urmărirea scăderii în greutate'!B61=0,'Urmărirea scăderii în greutate'!B60+5,'Urmărirea scăderii în greutate'!B61))","v":"00:00:00"},{"$f":"'Urmărirea scăderii în greutate'!C61","v":0}]
[{"$f":"IF(('Urmărirea scăderii în greutate'!C62=0)*('Urmărirea scăderii în greutate'!C61=0),TRUE)","v":true},{"$f":"IF(A41,0,IF('Urmărirea scăderii în greutate'!B62=0,'Urmărirea scăderii în greutate'!B61+5,'Urmărirea scăderii în greutate'!B62))","v":"00:00:00"},{"$f":"'Urmărirea scăderii în greutate'!C62","v":0}]
[{"$f":"IF(('Urmărirea scăderii în greutate'!C63=0)*('Urmărirea scăderii în greutate'!C62=0),TRUE)","v":true},{"$f":"IF(A42,0,IF('Urmărirea scăderii în greutate'!B63=0,'Urmărirea scăderii în greutate'!B62+5,'Urmărirea scăderii în greutate'!B63))","v":"00:00:00"},{"$f":"'Urmărirea scăderii în greutate'!C63","v":0}]
[{"$f":"IF(('Urmărirea scăderii în greutate'!C64=0)*('Urmărirea scăderii în greutate'!C63=0),TRUE)","v":true},{"$f":"IF(A43,0,IF('Urmărirea scăderii în greutate'!B64=0,'Urmărirea scăderii în greutate'!B63+5,'Urmărirea scăderii în greutate'!B64))","v":"00:00:00"},{"$f":"'Urmărirea scăderii în greutate'!C64","v":0}]
[{"$f":"IF(('Urmărirea scăderii în greutate'!C65=0)*('Urmărirea scăderii în greutate'!C64=0),TRUE)","v":true},{"$f":"IF(A44,0,IF('Urmărirea scăderii în greutate'!B65=0,'Urmărirea scăderii în greutate'!B64+5,'Urmărirea scăderii în greutate'!B65))","v":"00:00:00"},{"$f":"'Urmărirea scăderii în greutate'!C65","v":0}]
[{"$f":"IF(('Urmărirea scăderii în greutate'!C66=0)*('Urmărirea scăderii în greutate'!C65=0),TRUE)","v":true},{"$f":"IF(A45,0,IF('Urmărirea scăderii în greutate'!B66=0,'Urmărirea scăderii în greutate'!B65+5,'Urmărirea scăderii în greutate'!B66))","v":"00:00:00"},{"$f":"'Urmărirea scăderii în greutate'!C66","v":0}]
[{"$f":"IF(('Urmărirea scăderii în greutate'!C67=0)*('Urmărirea scăderii în greutate'!C66=0),TRUE)","v":true},{"$f":"IF(A46,0,IF('Urmărirea scăderii în greutate'!B67=0,'Urmărirea scăderii în greutate'!B66+5,'Urmărirea scăderii în greutate'!B67))","v":"00:00:00"},{"$f":"'Urmărirea scăderii în greutate'!C67","v":0}]
[{"$f":"IF(('Urmărirea scăderii în greutate'!C68=0)*('Urmărirea scăderii în greutate'!C67=0),TRUE)","v":true},{"$f":"IF(A47,0,IF('Urmărirea scăderii în greutate'!B68=0,'Urmărirea scăderii în greutate'!B67+5,'Urmărirea scăderii în greutate'!B68))","v":"00:00:00"},{"$f":"'Urmărirea scăderii în greutate'!C68","v":0}]
[{"$f":"IF(('Urmărirea scăderii în greutate'!C69=0)*('Urmărirea scăderii în greutate'!C68=0),TRUE)","v":true},{"$f":"IF(A48,0,IF('Urmărirea scăderii în greutate'!B69=0,'Urmărirea scăderii în greutate'!B68+5,'Urmărirea scăderii în greutate'!B69))","v":"00:00:00"},{"$f":"'Urmărirea scăderii în greutate'!C69","v":0}]
[{"$f":"IF(('Urmărirea scăderii în greutate'!C70=0)*('Urmărirea scăderii în greutate'!C69=0),TRUE)","v":true},{"$f":"IF(A49,0,IF('Urmărirea scăderii în greutate'!B70=0,'Urmărirea scăderii în greutate'!B69+5,'Urmărirea scăderii în greutate'!B70))","v":"00:00:00"},{"$f":"'Urmărirea scăderii în greutate'!C70","v":0}]
[{"$f":"IF(('Urmărirea scăderii în greutate'!C71=0)*('Urmărirea scăderii în greutate'!C70=0),TRUE)","v":true},{"$f":"IF(A50,0,IF('Urmărirea scăderii în greutate'!B71=0,'Urmărirea scăderii în greutate'!B70+5,'Urmărirea scăderii în greutate'!B71))","v":"00:00:00"},{"$f":"'Urmărirea scăderii în greutate'!C71","v":0}]
[{"$f":"IF(('Urmărirea scăderii în greutate'!C72=0)*('Urmărirea scăderii în greutate'!C71=0),TRUE)","v":true},{"$f":"IF(A51,0,IF('Urmărirea scăderii în greutate'!B72=0,'Urmărirea scăderii în greutate'!B71+5,'Urmărirea scăderii în greutate'!B72))","v":"00:00:00"},{"$f":"'Urmărirea scăderii în greutate'!C72","v":0}]
[{"$f":"IF(('Urmărirea scăderii în greutate'!C73=0)*('Urmărirea scăderii în greutate'!C72=0),TRUE)","v":true},{"$f":"IF(A52,0,IF('Urmărirea scăderii în greutate'!B73=0,'Urmărirea scăderii în greutate'!B72+5,'Urmărirea scăderii în greutate'!B73))","v":"00:00:00"},{"$f":"'Urmărirea scăderii în greutate'!C73","v":0}]
[{"$f":"IF(('Urmărirea scăderii în greutate'!C74=0)*('Urmărirea scăderii în greutate'!C73=0),TRUE)","v":true},{"$f":"IF(A53,0,IF('Urmărirea scăderii în greutate'!B74=0,'Urmărirea scăderii în greutate'!B73+5,'Urmărirea scăderii în greutate'!B74))","v":"00:00:00"},{"$f":"'Urmărirea scăderii în greutate'!C74","v":0}]
[{"$f":"IF(('Urmărirea scăderii în greutate'!C75=0)*('Urmărirea scăderii în greutate'!C74=0),TRUE)","v":true},{"$f":"IF(A54,0,IF('Urmărirea scăderii în greutate'!B75=0,'Urmărirea scăderii în greutate'!B74+5,'Urmărirea scăderii în greutate'!B75))","v":"00:00:00"},{"$f":"'Urmărirea scăderii în greutate'!C75","v":0}]
[{"$f":"IF(('Urmărirea scăderii în greutate'!C76=0)*('Urmărirea scăderii în greutate'!C75=0),TRUE)","v":true},{"$f":"IF(A55,0,IF('Urmărirea scăderii în greutate'!B76=0,'Urmărirea scăderii în greutate'!B75+5,'Urmărirea scăderii în greutate'!B76))","v":"00:00:00"},{"$f":"'Urmărirea scăderii în greutate'!C76","v":0}]
[{"$f":"IF(('Urmărirea scăderii în greutate'!C77=0)*('Urmărirea scăderii în greutate'!C76=0),TRUE)","v":true},{"$f":"IF(A56,0,IF('Urmărirea scăderii în greutate'!B77=0,'Urmărirea scăderii în greutate'!B76+5,'Urmărirea scăderii în greutate'!B77))","v":"00:00:00"},{"$f":"'Urmărirea scăderii în greutate'!C77","v":0}]
[{"$f":"IF(('Urmărirea scăderii în greutate'!C78=0)*('Urmărirea scăderii în greutate'!C77=0),TRUE)","v":true},{"$f":"IF(A57,0,IF('Urmărirea scăderii în greutate'!B78=0,'Urmărirea scăderii în greutate'!B77+5,'Urmărirea scăderii în greutate'!B78))","v":"00:00:00"},{"$f":"'Urmărirea scăderii în greutate'!C78","v":0}]
[{"$f":"IF(('Urmărirea scăderii în greutate'!C79=0)*('Urmărirea scăderii în greutate'!C78=0),TRUE)","v":true},{"$f":"IF(A58,0,IF('Urmărirea scăderii în greutate'!B79=0,'Urmărirea scăderii în greutate'!B78+5,'Urmărirea scăderii în greutate'!B79))","v":"00:00:00"},{"$f":"'Urmărirea scăderii în greutate'!C79","v":0}]
[{"$f":"IF(('Urmărirea scăderii în greutate'!C80=0)*('Urmărirea scăderii în greutate'!C79=0),TRUE)","v":true},{"$f":"IF(A59,0,IF('Urmărirea scăderii în greutate'!B80=0,'Urmărirea scăderii în greutate'!B79+5,'Urmărirea scăderii în greutate'!B80))","v":"00:00:00"},{"$f":"'Urmărirea scăderii în greutate'!C80","v":0}]
[{"$f":"IF(('Urmărirea scăderii în greutate'!C81=0)*('Urmărirea scăderii în greutate'!C80=0),TRUE)","v":true},{"$f":"IF(A60,0,IF('Urmărirea scăderii în greutate'!B81=0,'Urmărirea scăderii în greutate'!B80+5,'Urmărirea scăderii în greutate'!B81))","v":"00:00:00"},{"$f":"'Urmărirea scăderii în greutate'!C81","v":0}]
[{"$f":"IF(('Urmărirea scăderii în greutate'!C82=0)*('Urmărirea scăderii în greutate'!C81=0),TRUE)","v":true},{"$f":"IF(A61,0,IF('Urmărirea scăderii în greutate'!B82=0,'Urmărirea scăderii în greutate'!B81+5,'Urmărirea scăderii în greutate'!B82))","v":"00:00:00"},{"$f":"'Urmărirea scăderii în greutate'!C82","v":0}]
[{"$f":"IF(('Urmărirea scăderii în greutate'!C83=0)*('Urmărirea scăderii în greutate'!C82=0),TRUE)","v":true},{"$f":"IF(A62,0,IF('Urmărirea scăderii în greutate'!B83=0,'Urmărirea scăderii în greutate'!B82+5,'Urmărirea scăderii în greutate'!B83))","v":"00:00:00"},{"$f":"'Urmărirea scăderii în greutate'!C83","v":0}]
[{"$f":"IF(('Urmărirea scăderii în greutate'!C84=0)*('Urmărirea scăderii în greutate'!C83=0),TRUE)","v":true},{"$f":"IF(A63,0,IF('Urmărirea scăderii în greutate'!B84=0,'Urmărirea scăderii în greutate'!B83+5,'Urmărirea scăderii în greutate'!B84))","v":"00:00:00"},{"$f":"'Urmărirea scăderii în greutate'!C84","v":0}]
[{"$f":"IF(('Urmărirea scăderii în greutate'!C85=0)*('Urmărirea scăderii în greutate'!C84=0),TRUE)","v":true},{"$f":"IF(A64,0,IF('Urmărirea scăderii în greutate'!B85=0,'Urmărirea scăderii în greutate'!B84+5,'Urmărirea scăderii în greutate'!B85))","v":"00:00:00"},{"$f":"'Urmărirea scăderii în greutate'!C85","v":0}]
[{"$f":"IF(('Urmărirea scăderii în greutate'!C86=0)*('Urmărirea scăderii în greutate'!C85=0),TRUE)","v":true},{"$f":"IF(A65,0,IF('Urmărirea scăderii în greutate'!B86=0,'Urmărirea scăderii în greutate'!B85+5,'Urmărirea scăderii în greutate'!B86))","v":"00:00:00"},{"$f":"'Urmărirea scăderii în greutate'!C86","v":0}]
[{"$f":"IF(('Urmărirea scăderii în greutate'!C87=0)*('Urmărirea scăderii în greutate'!C86=0),TRUE)","v":true},{"$f":"IF(A66,0,IF('Urmărirea scăderii în greutate'!B87=0,'Urmărirea scăderii în greutate'!B86+5,'Urmărirea scăderii în greutate'!B87))","v":"00:00:00"},{"$f":"'Urmărirea scăderii în greutate'!C87","v":0}]
[{"$f":"IF(('Urmărirea scăderii în greutate'!C88=0)*('Urmărirea scăderii în greutate'!C87=0),TRUE)","v":true},{"$f":"IF(A67,0,IF('Urmărirea scăderii în greutate'!B88=0,'Urmărirea scăderii în greutate'!B87+5,'Urmărirea scăderii în greutate'!B88))","v":"00:00:00"},{"$f":"'Urmărirea scăderii în greutate'!C88","v":0}]
[{"$f":"IF(('Urmărirea scăderii în greutate'!C89=0)*('Urmărirea scăderii în greutate'!C88=0),TRUE)","v":true},{"$f":"IF(A68,0,IF('Urmărirea scăderii în greutate'!B89=0,'Urmărirea scăderii în greutate'!B88+5,'Urmărirea scăderii în greutate'!B89))","v":"00:00:00"},{"$f":"'Urmărirea scăderii în greutate'!C89","v":0}]
[{"$f":"IF(('Urmărirea scăderii în greutate'!C90=0)*('Urmărirea scăderii în greutate'!C89=0),TRUE)","v":true},{"$f":"IF(A69,0,IF('Urmărirea scăderii în greutate'!B90=0,'Urmărirea scăderii în greutate'!B89+5,'Urmărirea scăderii în greutate'!B90))","v":"00:00:00"},{"$f":"'Urmărirea scăderii în greutate'!C90","v":0}]
[{"$f":"IF(('Urmărirea scăderii în greutate'!C91=0)*('Urmărirea scăderii în greutate'!C90=0),TRUE)","v":true},{"$f":"IF(A70,0,IF('Urmărirea scăderii în greutate'!B91=0,'Urmărirea scăderii în greutate'!B90+5,'Urmărirea scăderii în greutate'!B91))","v":"00:00:00"},{"$f":"'Urmărirea scăderii în greutate'!C91","v":0}]
[{"$f":"IF(('Urmărirea scăderii în greutate'!C92=0)*('Urmărirea scăderii în greutate'!C91=0),TRUE)","v":true},{"$f":"IF(A71,0,IF('Urmărirea scăderii în greutate'!B92=0,'Urmărirea scăderii în greutate'!B91+5,'Urmărirea scăderii în greutate'!B92))","v":"00:00:00"},{"$f":"'Urmărirea scăderii în greutate'!C92","v":0}]
[{"$f":"IF(('Urmărirea scăderii în greutate'!C93=0)*('Urmărirea scăderii în greutate'!C92=0),TRUE)","v":true},{"$f":"IF(A72,0,IF('Urmărirea scăderii în greutate'!B93=0,'Urmărirea scăderii în greutate'!B92+5,'Urmărirea scăderii în greutate'!B93))","v":"00:00:00"},{"$f":"'Urmărirea scăderii în greutate'!C93","v":0}]
[{"$f":"IF(('Urmărirea scăderii în greutate'!C94=0)*('Urmărirea scăderii în greutate'!C93=0),TRUE)","v":true},{"$f":"IF(A73,0,IF('Urmărirea scăderii în greutate'!B94=0,'Urmărirea scăderii în greutate'!B93+5,'Urmărirea scăderii în greutate'!B94))","v":"00:00:00"},{"$f":"'Urmărirea scăderii în greutate'!C94","v":0}]
[{"$f":"IF(('Urmărirea scăderii în greutate'!C95=0)*('Urmărirea scăderii în greutate'!C94=0),TRUE)","v":true},{"$f":"IF(A74,0,IF('Urmărirea scăderii în greutate'!B95=0,'Urmărirea scăderii în greutate'!B94+5,'Urmărirea scăderii în greutate'!B95))","v":"00:00:00"},{"$f":"'Urmărirea scăderii în greutate'!C95","v":0}]
[{"$f":"IF(('Urmărirea scăderii în greutate'!C96=0)*('Urmărirea scăderii în greutate'!C95=0),TRUE)","v":true},{"$f":"IF(A75,0,IF('Urmărirea scăderii în greutate'!B96=0,'Urmărirea scăderii în greutate'!B95+5,'Urmărirea scăderii în greutate'!B96))","v":"00:00:00"},{"$f":"'Urmărirea scăderii în greutate'!C96","v":0}]
[{"$f":"IF(('Urmărirea scăderii în greutate'!C97=0)*('Urmărirea scăderii în greutate'!C96=0),TRUE)","v":true},{"$f":"IF(A76,0,IF('Urmărirea scăderii în greutate'!B97=0,'Urmărirea scăderii în greutate'!B96+5,'Urmărirea scăderii în greutate'!B97))","v":"00:00:00"},{"$f":"'Urmărirea scăderii în greutate'!C97","v":0}]
[{"$f":"IF(('Urmărirea scăderii în greutate'!C98=0)*('Urmărirea scăderii în greutate'!C97=0),TRUE)","v":true},{"$f":"IF(A77,0,IF('Urmărirea scăderii în greutate'!B98=0,'Urmărirea scăderii în greutate'!B97+5,'Urmărirea scăderii în greutate'!B98))","v":"00:00:00"},{"$f":"'Urmărirea scăderii în greutate'!C98","v":0}]
[{"$f":"IF(('Urmărirea scăderii în greutate'!C99=0)*('Urmărirea scăderii în greutate'!C98=0),TRUE)","v":true},{"$f":"IF(A78,0,IF('Urmărirea scăderii în greutate'!B99=0,'Urmărirea scăderii în greutate'!B98+5,'Urmărirea scăderii în greutate'!B99))","v":"00:00:00"},{"$f":"'Urmărirea scăderii în greutate'!C99","v":0}]
[{"$f":"IF(('Urmărirea scăderii în greutate'!C100=0)*('Urmărirea scăderii în greutate'!C99=0),TRUE)","v":true},{"$f":"IF(A79,0,IF('Urmărirea scăderii în greutate'!B100=0,'Urmărirea scăderii în greutate'!B99+5,'Urmărirea scăderii în greutate'!B100))","v":"00:00:00"},{"$f":"'Urmărirea scăderii în greutate'!C100","v":0}]
[{"$f":"IF(('Urmărirea scăderii în greutate'!C101=0)*('Urmărirea scăderii în greutate'!C100=0),TRUE)","v":true},{"$f":"IF(A80,0,IF('Urmărirea scăderii în greutate'!B101=0,'Urmărirea scăderii în greutate'!B100+5,'Urmărirea scăderii în greutate'!B101))","v":"00:00:00"},{"$f":"'Urmărirea scăderii în greutate'!C101","v":0}]
[{"$f":"IF(('Urmărirea scăderii în greutate'!C102=0)*('Urmărirea scăderii în greutate'!C101=0),TRUE)","v":true},{"$f":"IF(A81,0,IF('Urmărirea scăderii în greutate'!B102=0,'Urmărirea scăderii în greutate'!B101+5,'Urmărirea scăderii în greutate'!B102))","v":"00:00:00"},{"$f":"'Urmărirea scăderii în greutate'!C102","v":0}]
[{"$f":"IF(('Urmărirea scăderii în greutate'!C103=0)*('Urmărirea scăderii în greutate'!C102=0),TRUE)","v":true},{"$f":"IF(A82,0,IF('Urmărirea scăderii în greutate'!B103=0,'Urmărirea scăderii în greutate'!B102+5,'Urmărirea scăderii în greutate'!B103))","v":"00:00:00"},{"$f":"'Urmărirea scăderii în greutate'!C103","v":0}]
[{"$f":"IF(('Urmărirea scăderii în greutate'!C104=0)*('Urmărirea scăderii în greutate'!C103=0),TRUE)","v":true},{"$f":"IF(A83,0,IF('Urmărirea scăderii în greutate'!B104=0,'Urmărirea scăderii în greutate'!B103+5,'Urmărirea scăderii în greutate'!B104))","v":"00:00:00"},{"$f":"'Urmărirea scăderii în greutate'!C104","v":0}]
[{"$f":"IF(('Urmărirea scăderii în greutate'!C105=0)*('Urmărirea scăderii în greutate'!C104=0),TRUE)","v":true},{"$f":"IF(A84,0,IF('Urmărirea scăderii în greutate'!B105=0,'Urmărirea scăderii în greutate'!B104+5,'Urmărirea scăderii în greutate'!B105))","v":"00:00:00"},{"$f":"'Urmărirea scăderii în greutate'!C105","v":0}]
[{"$f":"IF(('Urmărirea scăderii în greutate'!C106=0)*('Urmărirea scăderii în greutate'!C105=0),TRUE)","v":true},{"$f":"IF(A85,0,IF('Urmărirea scăderii în greutate'!B106=0,'Urmărirea scăderii în greutate'!B105+5,'Urmărirea scăderii în greutate'!B106))","v":"00:00:00"},{"$f":"'Urmărirea scăderii în greutate'!C106","v":0}]
[{"$f":"IF(('Urmărirea scăderii în greutate'!C107=0)*('Urmărirea scăderii în greutate'!C106=0),TRUE)","v":true},{"$f":"IF(A86,0,IF('Urmărirea scăderii în greutate'!B107=0,'Urmărirea scăderii în greutate'!B106+5,'Urmărirea scăderii în greutate'!B107))","v":"00:00:00"},{"$f":"'Urmărirea scăderii în greutate'!C107","v":0}]
[{"$f":"IF(('Urmărirea scăderii în greutate'!C108=0)*('Urmărirea scăderii în greutate'!C107=0),TRUE)","v":true},{"$f":"IF(A87,0,IF('Urmărirea scăderii în greutate'!B108=0,'Urmărirea scăderii în greutate'!B107+5,'Urmărirea scăderii în greutate'!B108))","v":"00:00:00"},{"$f":"'Urmărirea scăderii în greutate'!C108","v":0}]
[{"$f":"IF(('Urmărirea scăderii în greutate'!C109=0)*('Urmărirea scăderii în greutate'!C108=0),TRUE)","v":true},{"$f":"IF(A88,0,IF('Urmărirea scăderii în greutate'!B109=0,'Urmărirea scăderii în greutate'!B108+5,'Urmărirea scăderii în greutate'!B109))","v":"00:00:00"},{"$f":"'Urmărirea scăderii în greutate'!C109","v":0}]
[{"$f":"IF(('Urmărirea scăderii în greutate'!C110=0)*('Urmărirea scăderii în greutate'!C109=0),TRUE)","v":true},{"$f":"IF(A89,0,IF('Urmărirea scăderii în greutate'!B110=0,'Urmărirea scăderii în greutate'!B109+5,'Urmărirea scăderii în greutate'!B110))","v":"00:00:00"},{"$f":"'Urmărirea scăderii în greutate'!C110","v":0}]
[{"$f":"IF(('Urmărirea scăderii în greutate'!C111=0)*('Urmărirea scăderii în greutate'!C110=0),TRUE)","v":true},{"$f":"IF(A90,0,IF('Urmărirea scăderii în greutate'!B111=0,'Urmărirea scăderii în greutate'!B110+5,'Urmărirea scăderii în greutate'!B111))","v":"00:00:00"},{"$f":"'Urmărirea scăderii în greutate'!C111","v":0}]
[{"$f":"IF(('Urmărirea scăderii în greutate'!C112=0)*('Urmărirea scăderii în greutate'!C111=0),TRUE)","v":true},{"$f":"IF(A91,0,IF('Urmărirea scăderii în greutate'!B112=0,'Urmărirea scăderii în greutate'!B111+5,'Urmărirea scăderii în greutate'!B112))","v":"00:00:00"},{"$f":"'Urmărirea scăderii în greutate'!C112","v":0}]
[{"$f":"IF(('Urmărirea scăderii în greutate'!C113=0)*('Urmărirea scăderii în greutate'!C112=0),TRUE)","v":true},{"$f":"IF(A92,0,IF('Urmărirea scăderii în greutate'!B113=0,'Urmărirea scăderii în greutate'!B112+5,'Urmărirea scăderii în greutate'!B113))","v":"00:00:00"},{"$f":"'Urmărirea scăderii în greutate'!C113","v":0}]
[{"$f":"IF(('Urmărirea scăderii în greutate'!C114=0)*('Urmărirea scăderii în greutate'!C113=0),TRUE)","v":true},{"$f":"IF(A93,0,IF('Urmărirea scăderii în greutate'!B114=0,'Urmărirea scăderii în greutate'!B113+5,'Urmărirea scăderii în greutate'!B114))","v":"00:00:00"},{"$f":"'Urmărirea scăderii în greutate'!C114","v":0}]
[{"$f":"IF(('Urmărirea scăderii în greutate'!C115=0)*('Urmărirea scăderii în greutate'!C114=0),TRUE)","v":true},{"$f":"IF(A94,0,IF('Urmărirea scăderii în greutate'!B115=0,'Urmărirea scăderii în greutate'!B114+5,'Urmărirea scăderii în greutate'!B115))","v":"00:00:00"},{"$f":"'Urmărirea scăderii în greutate'!C115","v":0}]
[{"$f":"IF(('Urmărirea scăderii în greutate'!C116=0)*('Urmărirea scăderii în greutate'!C115=0),TRUE)","v":true},{"$f":"IF(A95,0,IF('Urmărirea scăderii în greutate'!B116=0,'Urmărirea scăderii în greutate'!B115+5,'Urmărirea scăderii în greutate'!B116))","v":"00:00:00"},{"$f":"'Urmărirea scăderii în greutate'!C116","v":0}]
[{"$f":"IF(('Urmărirea scăderii în greutate'!C117=0)*('Urmărirea scăderii în greutate'!C116=0),TRUE)","v":true},{"$f":"IF(A96,0,IF('Urmărirea scăderii în greutate'!B117=0,'Urmărirea scăderii în greutate'!B116+5,'Urmărirea scăderii în greutate'!B117))","v":"00:00:00"},{"$f":"'Urmărirea scăderii în greutate'!C117","v":0}]
[{"$f":"IF(('Urmărirea scăderii în greutate'!C118=0)*('Urmărirea scăderii în greutate'!C117=0),TRUE)","v":true},{"$f":"IF(A97,0,IF('Urmărirea scăderii în greutate'!B118=0,'Urmărirea scăderii în greutate'!B117+5,'Urmărirea scăderii în greutate'!B118))","v":"00:00:00"},{"$f":"'Urmărirea scăderii în greutate'!C118","v":0}]
[{"$f":"IF(('Urmărirea scăderii în greutate'!C119=0)*('Urmărirea scăderii în greutate'!C118=0),TRUE)","v":true},{"$f":"IF(A98,0,IF('Urmărirea scăderii în greutate'!B119=0,'Urmărirea scăderii în greutate'!B118+5,'Urmărirea scăderii în greutate'!B119))","v":"00:00:00"},{"$f":"'Urmărirea scăderii în greutate'!C119","v":0}]
[{"$f":"IF(('Urmărirea scăderii în greutate'!C120=0)*('Urmărirea scăderii în greutate'!C119=0),TRUE)","v":true},{"$f":"IF(A99,0,IF('Urmărirea scăderii în greutate'!B120=0,'Urmărirea scăderii în greutate'!B119+5,'Urmărirea scăderii în greutate'!B120))","v":"00:00:00"},{"$f":"'Urmărirea scăderii în greutate'!C120","v":0}]
[{"$f":"IF(('Urmărirea scăderii în greutate'!C121=0)*('Urmărirea scăderii în greutate'!C120=0),TRUE)","v":true},{"$f":"IF(A100,0,IF('Urmărirea scăderii în greutate'!B121=0,'Urmărirea scăderii în greutate'!B120+5,'Urmărirea scăderii în greutate'!B121))","v":"00:00:00"},{"$f":"'Urmărirea scăderii în greutate'!C121","v":0}]
[{"$f":"IF(('Urmărirea scăderii în greutate'!C122=0)*('Urmărirea scăderii în greutate'!C121=0),TRUE)","v":true},{"$f":"IF(A101,0,IF('Urmărirea scăderii în greutate'!B122=0,'Urmărirea scăderii în greutate'!B121+5,'Urmărirea scăderii în greutate'!B122))","v":"00:00:00"},{"$f":"'Urmărirea scăderii în greutate'!C122","v":0}]
[{"$f":"IF(('Urmărirea scăderii în greutate'!C123=0)*('Urmărirea scăderii în greutate'!C122=0),TRUE)","v":true},{"$f":"IF(A102,0,IF('Urmărirea scăderii în greutate'!B123=0,'Urmărirea scăderii în greutate'!B122+5,'Urmărirea scăderii în greutate'!B123))","v":"00:00:00"},{"$f":"'Urmărirea scăderii în greutate'!C123","v":0}]
[{"$f":"IF(('Urmărirea scăderii în greutate'!C124=0)*('Urmărirea scăderii în greutate'!C123=0),TRUE)","v":true},{"$f":"IF(A103,0,IF('Urmărirea scăderii în greutate'!B124=0,'Urmărirea scăderii în greutate'!B123+5,'Urmărirea scăderii în greutate'!B124))","v":"00:00:00"},{"$f":"'Urmărirea scăderii în greutate'!C124","v":0}]
[{"$f":"IF(('Urmărirea scăderii în greutate'!C125=0)*('Urmărirea scăderii în greutate'!C124=0),TRUE)","v":true},{"$f":"IF(A104,0,IF('Urmărirea scăderii în greutate'!B125=0,'Urmărirea scăderii în greutate'!B124+5,'Urmărirea scăderii în greutate'!B125))","v":"00:00:00"},{"$f":"'Urmărirea scăderii în greutate'!C125","v":0}]
[{"$f":"IF(('Urmărirea scăderii în greutate'!C126=0)*('Urmărirea scăderii în greutate'!C125=0),TRUE)","v":true},{"$f":"IF(A105,0,IF('Urmărirea scăderii în greutate'!B126=0,'Urmărirea scăderii în greutate'!B125+5,'Urmărirea scăderii în greutate'!B126))","v":"00:00:00"},{"$f":"'Urmărirea scăderii în greutate'!C126","v":0}]
[{"$f":"IF(('Urmărirea scăderii în greutate'!C127=0)*('Urmărirea scăderii în greutate'!C126=0),TRUE)","v":true},{"$f":"IF(A106,0,IF('Urmărirea scăderii în greutate'!B127=0,'Urmărirea scăderii în greutate'!B126+5,'Urmărirea scăderii în greutate'!B127))","v":"00:00:00"},{"$f":"'Urmărirea scăderii în greutate'!C127","v":0}]
[{"$f":"IF(('Urmărirea scăderii în greutate'!C128=0)*('Urmărirea scăderii în greutate'!C127=0),TRUE)","v":true},{"$f":"IF(A107,0,IF('Urmărirea scăderii în greutate'!B128=0,'Urmărirea scăderii în greutate'!B127+5,'Urmărirea scăderii în greutate'!B128))","v":"00:00:00"},{"$f":"'Urmărirea scăderii în greutate'!C128","v":0}]
[{"$f":"IF(('Urmărirea scăderii în greutate'!C129=0)*('Urmărirea scăderii în greutate'!C128=0),TRUE)","v":true},{"$f":"IF(A108,0,IF('Urmărirea scăderii în greutate'!B129=0,'Urmărirea scăderii în greutate'!B128+5,'Urmărirea scăderii în greutate'!B129))","v":"00:00:00"},{"$f":"'Urmărirea scăderii în greutate'!C129","v":0}]